fUSD/lending_fUSD_20250113
["ID","MTS","AMOUNT","RATE_DAILY","PERIOD"]
[348726949,1736754655356,-540.32,0.00011542,2]
[348726950,1736754655366,-526.59,0.00011542,2]
[348726951,1736754655376,-911.31,0.00011542,2]
[348726952,1736754655386,-500.0,0.00011542,2]
[348726953,1736754655396,-918.99,0.00011542,2]
[348726954,1736754655406,-1733.87,0.00011542,2]
[348726955,1736754655416,-1207.16,0.00011542,2]
[348726956,1736754655426,-840.93,0.00011542,2]
[348726957,1736754655436,-1216.06,0.00011542,2]
[348726958,1736754655445,-729.29,0.00011542,2]
[348726959,1736754655455,-590.87,0.00011542,2]
[348726960,1736754655466,-711.23,0.00011542,2]
[348726961,1736754655477,-1148.16,0.00011542,2]
[348726962,1736754655487,-1353.35,0.00011542,2]
[348726963,1736754655496,-591.28,0.00011542,2]
[348726964,1736754655506,-507.77,0.00011542,2]
[348726965,1736754655517,-675.88,0.00011542,2]
[348726966,1736754655527,-1646.81,0.00011542,2]
[348726967,1736754655538,-667.37,0.00011542,2]
[348726968,1736754655548,-500.0,0.00011542,2]
[348726969,1736754655559,-923.3,0.00011544,2]
[348726970,1736754655570,-233.25659439,0.00011555,2]
[348726971,1736754655580,-1315.81,0.00011641,2]
[348726972,1736754655593,-4330.27,0.00011641,2]
[348726973,1736754655603,-500.0,0.00011641,2]
[348726974,1736754655613,-532.02,0.00011641,2]
[348726975,1736754655623,-789.66,0.00011641,2]
[348726976,1736754655634,-5052.17,0.00011641,2]
[348726977,1736754655644,-1550.3,0.00011641,2]
[348726978,1736754655653,-2120.68,0.00011641,2]
[348726979,1736754655665,-562.36,0.00011641,2]
[348726980,1736754655675,-618.14,0.00011641,2]
[348726981,1736754655684,-546.93,0.00011641,2]
[348726982,1736754655695,-1167.47,0.00011641,2]
[348726983,1736754655705,-935.9,0.00011641,2]
[348726984,1736754655715,-525.9,0.00011641,2]
[348726985,1736754655725,-500.0,0.00011641,2]
[348726986,1736754655736,-500.0,0.00011641,2]
[348726987,1736754655747,-2549.77,0.00011641,2]
[348726988,1736754655757,-706.07,0.00011642,2]
[348726989,1736754655766,-500.0,0.00011642,2]
[348726990,1736754655777,-625.36,0.00011642,2]
[348726991,1736754655787,-517.06,0.00011642,2]
[348726992,1736754655797,-500.0,0.00011642,2]
[348726993,1736754655966,-345.13988872,0.00011642,2]
[348726994,1736754655977,-500.0,0.00011642,2]
[348726995,1736754655987,-500.0,0.00011642,2]
[348726996,1736754655997,-540.93,0.00011642,2]
[348726997,1736754656007,-500.0,0.00011642,2]
[348726998,1736754656017,-578.96,0.00011642,2]
[348726999,1736754656027,-610.94,0.00011642,2]
[348727000,1736754656038,-574.42,0.00011642,2]
[348727001,1736754656048,-679.8,0.00011642,2]
[348727002,1736754656058,-500.0,0.00011642,2]
[348727003,1736754656068,-538.44,0.00011642,2]
[348727004,1736754656078,-546.71,0.00011642,2]
[348727005,1736754656088,-500.0,0.00011642,2]
[348727006,1736754656097,-500.0,0.00011642,2]
[348727007,1736754656107,-362.35187828,0.00011642,2]
[348727008,1736754656117,-218.94103379,0.00011642,2]
[348727009,1736754656127,-613.85,0.00011642,2]
[348727010,1736754656136,-500.0,0.00011642,2]
[348727011,1736754656146,-562.22,0.00011642,2]
[348727012,1736754656155,-500.0,0.00011642,2]
[348727013,1736754656165,-500.0,0.00011642,2]
[348727014,1736754656175,-609.36,0.00011642,2]
[348727015,1736754656184,-502.26,0.00011642,2]
[348727016,1736754656195,-511.88,0.00011642,2]
[348727017,1736754656204,-500.0,0.00011642,2]
[348727018,1736754656214,-621.14,0.00011642,2]
[348727019,1736754656225,-500.0,0.00011642,2]
[348727020,1736754656235,-500.0,0.00011642,2]
[348727021,1736754656244,-500.0,0.00011642,2]
[348727022,1736754656254,-500.0,0.00011642,2]
[348727023,1736754656265,-507.15,0.00011642,2]
[348727024,1736754656275,-500.0,0.00011642,2]
[348727025,1736754656286,-961.927568,0.00011642,2]
[348727026,1736754656296,-523.35,0.00011642,2]
[348727027,1736754656306,-946.56033,0.00011642,2]
[348727028,1736754656316,-500.0,0.00011642,2]
[348727029,1736754656327,-500.0,0.00011642,2]
[348727030,1736754656337,-500.0,0.00011642,2]
[348727031,1736754656346,-2292.91,0.00011642,2]
[348727032,1736754656357,-411.78521684,0.00011642,2]
[348727033,1736754656367,-500.0,0.00011642,2]
[348727034,1736754656376,-2014.21,0.00011642,2]
[348727035,1736754656387,-500.0,0.00011642,2]
[348727036,1736754656397,-500.84,0.00011642,2]
[348727037,1736754656407,-523.63,0.00011642,2]
[348727038,1736754656417,-2057.2,0.00011642,2]
[348727039,1736754656427,-500.0,0.00011642,2]
[348727040,1736754656437,-500.0,0.00011642,2]
[348727041,1736754656447,-500.0,0.00011642,2]
[348727042,1736754656457,-500.0,0.00011642,2]
[348727043,1736754656466,-500.0,0.00011642,2]
[348727044,1736754656476,-500.0,0.00011642,2]
[348727045,1736754656486,-500.0,0.00011642,2]
[348727046,1736754656496,-656.41,0.00011642,2]
[348727047,1736754656505,-500.0,0.00011642,2]
[348727048,1736754656515,-500.0,0.00011642,2]
[348727049,1736754656526,-518.34,0.00011642,2]
[348727050,1736754656536,-500.0,0.00011642,2]
[348727051,1736754656545,-740.67,0.00011642,2]
[348727052,1736754656555,-500.0,0.00011642,2]
[348727053,1736754656565,-500.0,0.00011642,2]
[348727054,1736754656575,-500.0,0.00011643,2]
[348727055,1736754656585,-838.23,0.00011643,2]
[348727056,1736754656596,-1002.54,0.00011643,2]
[348727057,1736754656606,-925.65,0.00011643,2]
[348727058,1736754656615,-701.47,0.00011643,2]
[348727059,1736754656625,-2045.55,0.00011643,2]
[348727060,1736754656634,-1043.64,0.00011643,2]
[348727061,1736754656644,-2111.23,0.00011643,2]
[348727062,1736754656654,-2596.83,0.00011643,2]
[348727063,1736754656663,-233.25659439,0.00011659,2]
[348727064,1736754656673,-500.0,0.00011671,2]
[348727065,1736754656683,-1000.0,0.00011738,2]
[348727066,1736754656693,-233.25659439,0.00011762,2]
[348727067,1736754656703,-548.74,0.00011796,2]
[348727068,1736754656713,-791.1,0.00011814,2]
[348727069,1736754656722,-838.07,0.00011814,2]
[348727070,1736754656732,-684.1,0.00011814,2]
[348727071,1736754656742,-500.0,0.00011814,2]
[348727072,1736754656752,-842.12,0.00011814,2]
[348727073,1736754656761,-561.75,0.00011814,2]
[348727074,1736754656771,-761.74,0.00011814,2]
[348727075,1736754656781,-624.04,0.00011814,2]
[348727076,1736754656791,-994.62,0.00011814,2]
[348727077,1736754656800,-1234.57,0.00011814,2]
[348727078,1736754656809,-1239.29,0.00011814,2]
[348727079,1736754656819,-2277.93,0.00011814,2]
[348727080,1736754656829,-3505.73,0.00011814,2]
[348727081,1736754656838,-697.48,0.00011814,2]
[348727082,1736754656848,-606.08,0.00011814,2]
[348727083,1736754656857,-1622.8,0.00011814,2]
[348727084,1736754656867,-600.38,0.00011814,2]
[348727085,1736754656876,-1646.76,0.00011814,2]
[348727086,1736754656886,-939.15,0.00011814,2]
[348727087,1736754656895,-580.46,0.00011814,2]
[348727088,1736754656905,-963.53,0.00011814,2]
[348727089,1736754656914,-850.4,0.00011814,2]
[348727090,1736754656924,-500.0,0.00011814,2]
[348727091,1736754656934,-556.44,0.00011814,2]
[348727092,1736754656943,-182.067082,0.00011815,2]
[348727093,1736754656952,-182.067082,0.00011815,2]
[348727094,1736754656961,-500.0,0.00011815,2]
[348727095,1736754656971,-500.0,0.00011815,2]
[348727096,1736754656981,-500.0,0.00011815,2]
[348727097,1736754656991,-500.0,0.00011815,2]
[348727098,1736754657000,-500.0,0.00011815,2]
[348727099,1736754657009,-500.0,0.00011815,2]
[348727100,1736754657019,-604.9,0.00011815,2]
[348727101,1736754657029,-500.0,0.00011815,2]
[348727102,1736754657038,-687.18,0.00011815,2]
[348727103,1736754657047,-629.19,0.00011815,2]
[348727104,1736754657058,-500.0,0.00011815,2]
[348727105,1736754657067,-586.83,0.00011815,2]
[348727106,1736754657077,-1533.31,0.00011815,2]
[348727107,1736754657087,-585.33,0.00011815,2]
[348727108,1736754657097,-1052.64,0.00011815,2]
[348727109,1736754657106,-691.3,0.00011815,2]
[348727110,1736754657116,-1938.6,0.00011815,2]
[348727111,1736754657126,-684.59,0.00011815,2]
[348727112,1736754657135,-779.49,0.00011815,2]
[348727113,1736754657145,-2516.75,0.00011815,2]
[348727114,1736754657154,-716.11,0.00011815,2]
[348727115,1736754657163,-733.27,0.00011815,2]
[348727116,1736754657174,-1118.11,0.00011815,2]
[348727117,1736754657184,-500.0,0.00011815,2]
[348727118,1736754657194,-1755.67,0.00011815,2]
[348727119,1736754657204,-1115.1,0.00011815,2]
[348727120,1736754657215,-881.4,0.00011815,2]
[348727121,1736754657225,-686.27,0.00011815,2]
[348727122,1736754657235,-1011.51,0.00011815,2]
[348727123,1736754657244,-937.45,0.00011815,2]
[348727124,1736754657255,-1286.18,0.00011815,2]
[348727125,1736754657265,-949.29,0.00011815,2]
[348727126,1736754657275,-767.32,0.00011815,2]
[348727127,1736754657285,-540.32,0.00011816,2]
[348727128,1736754657294,-526.59,0.00011816,2]
[348727129,1736754657304,-911.31,0.00011816,2]
[348727130,1736754657315,-500.0,0.00011816,2]
[348727131,1736754657325,-918.99,0.00011816,2]
[348727132,1736754657335,-1733.87,0.00011816,2]
[348727133,1736754657345,-1207.16,0.00011816,2]
[348727134,1736754657355,-840.93,0.00011816,2]
[348727135,1736754657364,-1216.06,0.00011816,2]
[348727136,1736754657374,-729.29,0.00011816,2]
[348727137,1736754657384,-590.87,0.00011816,2]
[348727138,1736754657395,-711.23,0.00011816,2]
[348727139,1736754657405,-1148.16,0.00011816,2]
[348727140,1736754657415,-1353.35,0.00011816,2]
[348727141,1736754657423,-591.28,0.00011816,2]
[348727142,1736754657434,-507.77,0.00011816,2]
[348727143,1736754657445,-675.88,0.00011816,2]
[348727144,1736754657455,-1646.81,0.00011816,2]
[348727145,1736754657465,-667.37,0.00011816,2]
[348727146,1736754657474,-500.0,0.00011816,2]
[348727147,1736754657484,-157.40095953,0.00011817,2]
[348727148,1736754657492,-233.25659439,0.00011866,2]
[348727149,1736754657502,-584.54805164,0.000119,2]
[348727150,1736754657511,-1315.81,0.00011915,2]
[348727151,1736754657522,-4330.27,0.00011915,2]
[348727152,1736754657531,-500.0,0.00011915,2]
[348727153,1736754657540,-532.02,0.00011915,2]
[348727154,1736754657550,-789.66,0.00011915,2]
[348727155,1736754657559,-5052.17,0.00011915,2]
[348727156,1736754657568,-1550.3,0.00011915,2]
[348727157,1736754657578,-2120.68,0.00011915,2]
[348727158,1736754657589,-562.36,0.00011915,2]
[348727159,1736754657600,-618.14,0.00011915,2]
[348727160,1736754657610,-546.93,0.00011915,2]
[348727161,1736754657620,-1167.47,0.00011915,2]
[348727162,1736754657631,-935.9,0.00011915,2]
[348727163,1736754657640,-525.9,0.00011915,2]
[348727164,1736754657650,-500.0,0.00011915,2]
[348727165,1736754657660,-224.62417384,0.00011915,2]
[348727166,1736754657670,-2549.77,0.00011915,2]
[348727167,1736754657681,-706.07,0.00011916,2]
[348727168,1736754657690,-500.0,0.00011916,2]
[348727169,1736754657699,-625.36,0.00011916,2]
[348727170,1736754657709,-517.06,0.00011916,2]
[348727171,1736754657718,-500.0,0.00011916,2]
[348727172,1736754657727,-500.0,0.00011916,2]
[348727173,1736754657737,-500.0,0.00011916,2]
[348727174,1736754657747,-540.93,0.00011916,2]
[348727175,1736754657756,-500.0,0.00011916,2]
[348727176,1736754657765,-578.96,0.00011916,2]
[348727177,1736754657776,-574.42,0.00011916,2]
[348727178,1736754657785,-679.8,0.00011916,2]
[348727179,1736754657794,-500.0,0.00011916,2]
[348727180,1736754657803,-538.44,0.00011916,2]
[348727181,1736754657813,-546.71,0.00011916,2]
[348727182,1736754657822,-433.05460636,0.00011916,2]
[348727183,1736754657831,-500.0,0.00011916,2]
[348727184,1736754657840,-613.85,0.00011916,2]
[348727185,1736754657853,-500.0,0.00011916,2]
[348727186,1736754657866,-562.22,0.00011916,2]
[348727187,1736754657880,-500.0,0.00011916,2]
[348727188,1736754657895,-500.0,0.00011916,2]
[348727189,1736754657906,-609.36,0.00011916,2]
[348727190,1736754657919,-502.26,0.00011916,2]
[348727191,1736754657932,-511.88,0.00011916,2]
[348727192,1736754657944,-500.0,0.00011916,2]
[348727193,1736754657956,-621.14,0.00011916,2]
[348727194,1736754657969,-500.0,0.00011916,2]
[348727195,1736754657982,-500.0,0.00011916,2]
[348727196,1736754657993,-500.0,0.00011916,2]
[348727197,1736754658006,-500.0,0.00011916,2]
[348727198,1736754658016,-507.15,0.00011916,2]
[348727199,1736754658028,-500.0,0.00011916,2]
[348727200,1736754658041,-961.927568,0.00011916,2]
[348727201,1736754658054,-523.35,0.00011916,2]
[348727202,1736754658066,-946.56033,0.00011916,2]
[348727203,1736754658079,-500.0,0.00011916,2]
[348727204,1736754658092,-500.0,0.00011916,2]
[348727205,1736754658105,-500.0,0.00011916,2]
[348727206,1736754658117,-2292.91,0.00011916,2]
[348727207,1736754658131,-500.0,0.00011916,2]
[348727208,1736754658142,-2014.21,0.00011916,2]
[348727209,1736754658156,-500.0,0.00011916,2]
[348727210,1736754658168,-500.84,0.00011916,2]
[348727211,1736754658180,-523.63,0.00011916,2]
[348727212,1736754658192,-2057.2,0.00011916,2]
[348727213,1736754658204,-500.0,0.00011916,2]
[348727214,1736754658219,-500.0,0.00011916,2]
[348727215,1736754658231,-500.0,0.00011916,2]
[348727216,1736754658243,-500.0,0.00011916,2]
[348727217,1736754658254,-500.0,0.00011916,2]
[348727218,1736754658268,-542.44,0.00011916,2]
[348727219,1736754658279,-656.41,0.00011916,2]
[348727220,1736754658290,-500.0,0.00011916,2]
[348727221,1736754658305,-500.0,0.00011916,2]
[348727222,1736754658317,-518.34,0.00011916,2]
[348727223,1736754658328,-500.0,0.00011916,2]
[348727224,1736754658338,-500.0,0.00011916,2]
[348727225,1736754658349,-740.67,0.00011916,2]
[348727226,1736754658362,-500.0,0.00011916,2]
[348727227,1736754658375,-500.0,0.00011917,2]
[348727228,1736754658386,-838.23,0.00011917,2]
[348727229,1736754658398,-1002.54,0.00011917,2]
[348727230,1736754658410,-925.65,0.00011917,2]
[348727231,1736754658423,-701.47,0.00011917,2]
[348727232,1736754658434,-2045.55,0.00011917,2]
[348727233,1736754658447,-1043.64,0.00011917,2]
[348727234,1736754658460,-2111.23,0.00011917,2]
[348727235,1736754658473,-2596.83,0.00011917,2]
[348727236,1736754658484,-1232.51,0.00011944,2]
[348727237,1736754658497,-1058.0,0.00011959,2]
[348727238,1736754658509,-233.25659439,0.00011969,2]
[348727239,1736754658520,-24217.0,0.00012,2]
[348727240,1736754658531,-8002.31424278,0.00012,2]
[348727241,1736754658543,-19160.01732501,0.00012,3]
[348727242,1736754658555,-29733.69378437,0.00012,3]
[348727243,1736754658567,-8014.17555252,0.00012,4]
[348727244,1736754658578,-50000.00346195,0.00012,2]
[348727245,1736754658593,-241725.75209187,0.00012,2]
[348727246,1736754659034,-500.0,0.00010192,2]
[348727247,1736754659045,-646.1144837,0.00010545,2]
[348727248,1736754659059,-971.33941246,0.00010545,2]
[348727249,1736754659073,-157.85610384,0.00010545,2]
[348727250,1736754659084,-1775.31,0.00010819,2]
[348727251,1736754659095,-467.56849272,0.00011542,2]
[348727252,1736754659107,-110014.93952891,0.00012,2]
[348727253,1736754659121,-421.51560002,0.00012,2]
[348727254,1736754659936,-768.18953748,9.898e-05,2]
[348727255,1736754660246,-511.0,9.898e-05,2]
[348727256,1736754660265,-422.14046252,9.898e-05,2]
[348727257,1736754660277,-1701.33,0.00010172,2]
[348727258,1736754660287,-1701.33,0.00010446,2]
[348727259,1736754660297,-1701.33,0.0001072,2]
[348727260,1736754660307,-1701.33,0.00010994,2]
[348727261,1736754660317,-1775.31,0.00011093,2]
[348727262,1736754660327,-914.74737861,0.00011367,2]
[348727263,1736754660339,-588.94,0.00011367,2]
[348727264,1736754660351,-271.62262139,0.00011367,2]
[348727265,1736754660360,-651.19917532,0.00011641,2]
[348727266,1736754660386,-1701.33,0.00011268,2]
[348727267,1736754660395,-1124.11082468,0.00011641,2]
[348727268,1736754660404,-1775.31,0.00011915,2]
[348727269,1736754660414,-4692.37510409,0.00012,2]
[348727270,1736754660426,-6382.55891473,0.00012,2]
[348727271,1736754660445,-51349.65150972,0.00012,2]
[348727272,1736754660456,-743.3523116,0.00012,2]
[348727273,1736754660485,-28815.82135084,0.00012,2]
[348727274,1736754660496,-926.03589053,0.00012,2]
[348727275,1736754660508,-1541.73725272,0.00012,2]
[348727276,1736754660522,-394.98467362,0.00012,2]
[348727277,1736754732215,-234282.11210379,0.0002,120]
[348727278,1736754732262,-5000.0,0.00023,120]
[348727279,1736754776267,171.35,7.795e-05,2]
[348727280,1736755010031,4400.0,0.00023,120]
[348727281,1736755343480,1254.56,8.219e-05,2]
[348727284,1736755711067,150.0,0.00021449,120]
[348727285,1736755760502,263.93700494,0.00023,120]
[348727295,1736755831629,-171.35,8.769e-05,2]
[348727296,1736755831639,-250.0,8.907e-05,2]
[348727297,1736755831648,-250.0,8.91e-05,2]
[348727298,1736755831658,-200.0,8.923e-05,2]
[348727299,1736755831667,-369.32,8.927e-05,2]
[348727300,1736755831676,-1000.0,8.931e-05,2]
[348727301,1736755831686,-156.03,8.931e-05,2]
[348727302,1736755831695,-200.0,8.939e-05,2]
[348727303,1736755831704,-616.26,8.947e-05,2]
[348727304,1736755831713,-194.92,9.26e-05,2]
[348727305,1736755831722,-165.6949,9.643e-05,2]
[348727306,1736755831731,-155.31,9.649e-05,2]
[348727307,1736755831741,-155.31,9.652e-05,2]
[348727308,1736755831750,-155.31,9.655e-05,2]
[348727309,1736755831759,-155.31,9.658e-05,2]
[348727310,1736755831767,-155.31,9.661e-05,2]
[348727311,1736755831776,-155.31,9.663e-05,2]
[348727312,1736755831786,-155.31,9.666e-05,2]
[348727313,1736755831796,-155.31,9.669e-05,2]
[348727314,1736755831807,-155.31,9.672e-05,2]
[348727315,1736755831817,-155.31,9.675e-05,2]
[348727316,1736755831826,-155.31,9.678e-05,2]
[348727317,1736755831835,-155.31,9.681e-05,2]
[348727318,1736755831844,-155.31,9.683e-05,2]
[348727319,1736755831853,-155.31,9.686e-05,2]
[348727320,1736755831862,-155.31,9.689e-05,2]
[348727321,1736755831871,-155.31,9.692e-05,2]
[348727322,1736755831881,-155.31,9.695e-05,2]
[348727323,1736755831890,-155.31,9.698e-05,2]
[348727324,1736755831899,-171.35,9.743e-05,2]
[348727325,1736755831908,-1977.9441,9.798e-05,2]
[348727326,1736755831918,-500.0,9.799e-05,2]
[348727327,1736755831927,-500.0,9.897e-05,2]
[348727328,1736755831936,-500.0,9.897e-05,2]
[348727329,1736755831945,-1097.84,9.897e-05,2]
[348727330,1736755831954,-500.0,9.897e-05,2]
[348727331,1736755831963,-642.35,9.897e-05,2]
[348727332,1736755831972,-1081.86,9.897e-05,2]
[348727333,1736755831981,-566.93,9.897e-05,2]
[348727334,1736755831990,-500.0,9.897e-05,2]
[348727335,1736755831999,-649.63,9.897e-05,2]
[348727336,1736755832008,-500.0,9.897e-05,2]
[348727337,1736755832020,-500.0,9.898e-05,2]
[348727338,1736755832032,-500.0,9.898e-05,2]
[348727339,1736755832041,-500.0,9.898e-05,2]
[348727340,1736755832051,-500.0,9.898e-05,2]
[348727341,1736755832061,-500.0,9.898e-05,2]
[348727342,1736755832072,-500.0,9.898e-05,2]
[348727343,1736755832081,-500.0,9.898e-05,2]
[348727344,1736755832091,-500.0,9.898e-05,2]
[348727345,1736755832100,-500.0,9.898e-05,2]
[348727346,1736755832110,-500.0,9.898e-05,2]
[348727347,1736755832119,-500.0,9.898e-05,2]
[348727348,1736755832128,-500.0,9.898e-05,2]
[348727349,1736755832138,-500.0,9.898e-05,2]
[348727350,1736755832147,-519.66,9.898e-05,2]
[348727351,1736755832156,-500.0,9.898e-05,2]
[348727352,1736755832165,-500.0,9.898e-05,2]
[348727353,1736755832175,-500.0,9.898e-05,2]
[348727354,1736755832183,-500.0,9.898e-05,2]
[348727355,1736755832193,-500.0,9.898e-05,2]
[348727356,1736755832202,-743.4,9.898e-05,2]
[348727357,1736755832211,-500.0,9.898e-05,2]
[348727358,1736755832221,-511.55,9.898e-05,2]
[348727359,1736755832230,-500.0,9.898e-05,2]
[348727360,1736755832240,-651.74,9.898e-05,2]
[348727361,1736755832249,-890.08,9.898e-05,2]
[348727362,1736755832258,-527.4,9.898e-05,2]
[348727363,1736755832267,-730.7,9.898e-05,2]
[348727364,1736755832276,-1679.75,9.997e-05,2]
[348727365,1736755832285,-745.41,9.997e-05,2]
[348727366,1736755832295,-1170.44,9.997e-05,2]
[348727367,1736755832306,-587.6,9.997e-05,2]
[348727368,1736755832317,-674.34,9.997e-05,2]
[348727369,1736755832326,-632.86,9.997e-05,2]
[348727370,1736755832335,-1735.66,9.997e-05,2]
[348727371,1736755832345,-558.72,9.998e-05,2]
[348727372,1736755832355,-500.0,9.999e-05,2]
[348727373,1736755832364,-500.0,9.999e-05,2]
[348727374,1736755832373,-561.41,9.999e-05,2]
[348727375,1736755832383,-500.0,9.999e-05,2]
[348727376,1736755832392,-507.83,9.999e-05,2]
[348727377,1736755832402,-600.72893278,9.999e-05,2]
[348727378,1736755832411,-500.0,9.999e-05,2]
[348727379,1736755832420,-663.08,9.999e-05,2]
[348727380,1736755832430,-2337.15,9.999e-05,2]
[348727381,1736755832439,-823.04,9.999e-05,2]
[348727382,1736755832448,-826.19,9.999e-05,2]
[348727383,1736755832458,-500.0,9.999e-05,2]
[348727384,1736755832467,-1518.62,9.999e-05,2]
[348727385,1736755832477,-183.71,0.0001,2]
[348727386,1736755832486,-369.32,0.00010043,2]
[348727387,1736755832495,-1000.0,0.00010048,2]
[348727388,1736755832506,-383.09,0.00010137,2]
[348727389,1736755832517,-500.0,0.00010171,2]
[348727390,1736755832527,-500.0,0.00010171,2]
[348727391,1736755832536,-1097.84,0.00010171,2]
[348727392,1736755832545,-500.0,0.00010171,2]
[348727393,1736755832555,-642.35,0.00010171,2]
[348727394,1736755832565,-1081.86,0.00010171,2]
[348727395,1736755832574,-566.93,0.00010171,2]
[348727396,1736755832583,-500.0,0.00010171,2]
[348727397,1736755832592,-649.63,0.00010171,2]
[348727398,1736755832602,-500.0,0.00010171,2]
[348727399,1736755832611,-500.0,0.00010172,2]
[348727400,1736755832621,-500.0,0.00010172,2]
[348727401,1736755832631,-500.0,0.00010172,2]
[348727402,1736755832640,-500.0,0.00010172,2]
[348727403,1736755832649,-572.05106538,0.00010172,2]
[348727404,1736755832659,-500.0,0.00010172,2]
[348727405,1736755832668,-500.0,0.00010172,2]
[348727406,1736755832678,-500.0,0.00010172,2]
[348727407,1736755832687,-500.0,0.00010172,2]
[348727408,1736755832701,-390.67211508,0.00010172,2]
[348727409,1736755832710,-519.66,0.00010172,2]
[348727410,1736755832719,-500.0,0.00010172,2]
[348727411,1736755832728,-500.0,0.00010172,2]
[348727412,1736755832738,-500.0,0.00010172,2]
[348727413,1736755832747,-743.4,0.00010172,2]
[348727414,1736755832756,-500.0,0.00010172,2]
[348727415,1736755832765,-511.55,0.00010172,2]
[348727416,1736755832774,-651.74,0.00010172,2]
[348727417,1736755832783,-890.08,0.00010172,2]
[348727418,1736755832792,-527.4,0.00010172,2]
[348727419,1736755832801,-730.7,0.00010172,2]
[348727420,1736755832812,-1679.75,0.00010271,2]
[348727421,1736755832821,-745.41,0.00010271,2]
[348727422,1736755832830,-1170.44,0.00010271,2]
[348727423,1736755832839,-587.6,0.00010271,2]
[348727424,1736755832848,-674.34,0.00010271,2]
[348727425,1736755832857,-632.86,0.00010271,2]
[348727426,1736755832866,-1735.66,0.00010271,2]
[348727427,1736755832875,-558.72,0.00010272,2]
[348727428,1736755832884,-500.0,0.00010273,2]
[348727429,1736755832894,-500.0,0.00010273,2]
[348727430,1736755832903,-561.41,0.00010273,2]
[348727431,1736755832912,-500.0,0.00010273,2]
[348727432,1736755832921,-507.83,0.00010273,2]
[348727433,1736755832931,-500.0,0.00010273,2]
[348727434,1736755832940,-663.08,0.00010273,2]
[348727435,1736755832949,-2337.15,0.00010273,2]
[348727436,1736755832959,-823.04,0.00010273,2]
[348727437,1736755832968,-826.19,0.00010273,2]
[348727438,1736755832977,-500.0,0.00010273,2]
[348727439,1736755832986,-1254.56,0.0001042,2]
[348727440,1736755832995,-612.66,0.00010444,2]
[348727441,1736755833004,-560.62,0.00010444,2]
[348727442,1736755833013,-500.0,0.00010444,2]
[348727443,1736755833028,-1201.99,0.00010444,2]
[348727444,1736755833038,-849.66,0.00010444,2]
[348727445,1736755833048,-765.44,0.00010444,2]
[348727446,1736755833061,-840.23,0.00010444,2]
[348727447,1736755833072,-507.03,0.00010444,2]
[348727448,1736755833082,-2194.51,0.00010444,2]
[348727449,1736755833091,-500.0,0.00010444,2]
[348727450,1736755833102,-500.0,0.00010444,2]
[348727451,1736755833111,-902.24,0.00010444,2]
[348727452,1736755833121,-500.0,0.00010444,2]
[348727453,1736755833130,-500.0,0.00010444,2]
[348727454,1736755833140,-500.0,0.00010444,2]
[348727455,1736755833149,-1137.09,0.00010444,2]
[348727456,1736755833158,-500.0,0.00010444,2]
[348727457,1736755833168,-500.0,0.00010444,2]
[348727458,1736755833177,-500.0,0.00010444,2]
[348727459,1736755833186,-1242.58,0.00010444,2]